[Event "Late-Titled-Tuesday-Blitz-July-09-2024"]
[Site "Chess.com"]
[Date "2024.07.09"]
[Round "9"]
[White "WPWPWP-2015"]
[Black "annasargsyan_m"]
[Result "0-1"]
[WhiteElo "2524"]
[BlackElo "2693"]
[TimeControl "180+1"]
[EndTime "15:42:06 PDT"]
[Termination "annasargsyan_m won by resignation"]

1. e4 {[%clk 0:02:28.2]} 1... c6 {[%clk 0:02:57.8]} 2. d4 {[%clk 0:02:24.2]}
2... d5 {[%clk 0:02:58.7]} 3. Nc3 {[%clk 0:02:19.7]} 3... dxe4 {[%clk
0:02:57.8]} 4. Nxe4 {[%clk 0:02:19.3]} 4... Bf5 {[%clk 0:02:58.5]} 5. Ng3 {[%clk
0:02:18.9]} 5... Bg6 {[%clk 0:02:59.1]} 6. N1e2 {[%clk 0:02:19.1]} 6... Nf6
{[%clk 0:02:57.6]} 7. h4 {[%clk 0:02:18.4]} 7... h6 {[%clk 0:02:57.3]} 8. Nf4
{[%clk 0:02:18.3]} 8... Bh7 {[%clk 0:02:57.6]} 9. Bc4 {[%clk 0:02:17.5]} 9... e6
{[%clk 0:02:57.3]} 10. c3 {[%clk 0:02:16.4]} 10... Bd6 {[%clk 0:02:56.8]} 11.
Qe2 {[%clk 0:02:15.7]} 11... O-O {[%clk 0:02:56.1]} 12. Be3 {[%clk 0:02:13]}
12... Qc7 {[%clk 0:02:52.1]} 13. Ngh5 {[%clk 0:02:06.6]} 13... Nbd7 {[%clk
0:02:50]} 14. Nxf6+ {[%clk 0:01:58.7]} 14... Nxf6 {[%clk 0:02:49.5]} 15. Nd3
{[%clk 0:01:57.4]} 15... b5 {[%clk 0:02:48.2]} 16. Bb3 {[%clk 0:01:57]} 16... a5
{[%clk 0:02:47.8]} 17. Bc2 {[%clk 0:01:46.8]} 17... b4 {[%clk 0:02:46.8]} 18. g4
{[%clk 0:01:45.6]} 18... bxc3 {[%clk 0:02:46.1]} 19. bxc3 {[%clk 0:01:44.9]}
19... Nd5 {[%clk 0:02:43.7]} 20. Qd2 {[%clk 0:01:24.5]} 20... e5 {[%clk
0:02:39.9]} 21. dxe5 {[%clk 0:01:16.4]} 21... Bxe5 {[%clk 0:02:38.7]} 22. Nxe5
{[%clk 0:01:14.4]} 22... Qxe5 {[%clk 0:02:39.6]} 23. Bxh7+ {[%clk 0:01:12.7]}
23... Kxh7 {[%clk 0:02:39]} 24. Qd4 {[%clk 0:01:10.9]} 24... Qe6 {[%clk
0:02:24.5]} 25. O-O {[%clk 0:01:05.6]} 25... Rae8 {[%clk 0:02:20.6]} 26. Rfe1
{[%clk 0:01:01.6]} 26... f5 {[%clk 0:02:20.2]} 27. g5 {[%clk 0:00:59.1]} 27...
f4 {[%clk 0:02:17.9]} 28. Qd3+ {[%clk 0:00:28]} 28... Kh8 {[%clk 0:02:17.1]} 29.
Bc5 {[%clk 0:00:19]} 29... Qg4+ {[%clk 0:02:12.5]} 30. Kh2 {[%clk 0:00:14]}
30... f3 {[%clk 0:02:11.9]} 31. Qf1 {[%clk 0:00:11.3]} 31... Nf4 {[%clk
0:02:02.9]} 32. Rxe8 {[%clk 0:00:05.9]} 32... Qxh4+ {[%clk 0:02:02.3]} 33. Kg1
{[%clk 0:00:05.5]} 33... Qxg5+ {[%clk 0:02:02.4]} 34. Kh2 {[%clk 0:00:05.2]}
34... Rxe8 {[%clk 0:02:02.5]} 35. Bd6 {[%clk 0:00:03.7]} 35... Qh4+ {[%clk
0:01:59.5]} 36. Kg1 {[%clk 0:00:03.7]} 36... Ne2+ {[%clk 0:02:00.2]} 0-1

[Event "Late-Titled-Tuesday-Blitz-July-09-2024"]
[Site "Chess.com"]
[Date "2024.07.09"]
[Round "9"]
[White "santig8"]
[Black "SharathRk6"]
[Result "0-1"]
[WhiteElo "2279"]
[BlackElo "2437"]
[TimeControl "180+1"]
[EndTime "15:42:09 PDT"]
[Termination "SharathRk6 won on time"]

1. e4 {[%clk 0:03:00.9]} 1... e5 {[%clk 0:02:58.3]} 2. Nf3 {[%clk 0:03:00]} 2...
Nc6 {[%clk 0:02:58.8]} 3. Bc4 {[%clk 0:02:57.7]} 3... Bc5 {[%clk 0:02:57.9]} 4.
c3 {[%clk 0:02:56.1]} 4... Nf6 {[%clk 0:02:58]} 5. d4 {[%clk 0:02:54.5]} 5...
exd4 {[%clk 0:02:58.1]} 6. b4 {[%clk 0:02:51.8]} 6... Be7 {[%clk 0:02:55]} 7. e5
{[%clk 0:02:24]} 7... Ne4 {[%clk 0:02:52.8]} 8. b5 {[%clk 0:02:04.4]} 8... Na5
{[%clk 0:02:42.9]} 9. Bd5 {[%clk 0:01:49.3]} 9... Nxc3 {[%clk 0:02:37.6]} 10.
Nxc3 {[%clk 0:01:48.3]} 10... dxc3 {[%clk 0:02:38.1]} 11. O-O {[%clk 0:01:46.7]}
11... O-O {[%clk 0:02:34.5]} 12. h4 {[%clk 0:01:38.7]} 12... c6 {[%clk
0:02:33.8]} 13. Be4 {[%clk 0:01:38.3]} 13... d5 {[%clk 0:02:32.4]} 14. exd6
{[%clk 0:01:37.9]} 14... Qxd6 {[%clk 0:02:32.3]} 15. Qc2 {[%clk 0:01:26.6]}
15... f5 {[%clk 0:02:32]} 16. Bd3 {[%clk 0:01:23.4]} 16... Be6 {[%clk
0:02:32.2]} 17. Re1 {[%clk 0:01:19.4]} 17... Rad8 {[%clk 0:02:28.2]} 18. Bf1
{[%clk 0:01:00.9]} 18... Bd5 {[%clk 0:02:16.2]} 19. Qxc3 {[%clk 0:00:40]} 19...
Bf6 {[%clk 0:02:10.3]} 20. Qxa5 {[%clk 0:00:37.7]} 20... Bxa1 {[%clk 0:02:09.9]}
21. Ba3 {[%clk 0:00:37.3]} 21... Qf6 {[%clk 0:02:07]} 22. Bxf8 {[%clk
0:00:27.9]} 22... Rxf8 {[%clk 0:02:06]} 23. Ng5 {[%clk 0:00:19.8]} 23... Bc3
{[%clk 0:02:03.5]} 24. Qxa7 {[%clk 0:00:10.7]} 24... Bxe1 {[%clk 0:02:03.9]} 25.
Qxb7 {[%clk 0:00:10.3]} 25... Qd4 {[%clk 0:02:00]} 26. Nh3 {[%clk 0:00:08.6]}
26... cxb5 {[%clk 0:01:56.9]} 27. Qxb5 {[%clk 0:00:07.6]} 27... Bd2 {[%clk
0:01:51.8]} 28. a4 {[%clk 0:00:07.5]} 28... f4 {[%clk 0:01:48.7]} 29. a5 {[%clk
0:00:06.3]} 29... f3 {[%clk 0:01:49.4]} 30. g3 {[%clk 0:00:06.1]} 30... Be6
{[%clk 0:01:47]} 31. a6 {[%clk 0:00:02.4]} 31... Bxh3 {[%clk 0:01:47.3]} 32.
Bxh3 {[%clk 0:00:02.1]} 32... Be1 {[%clk 0:01:47.6]} 0-1

[Event "Late-Titled-Tuesday-Blitz-July-09-2024"]
[Site "Chess.com"]
[Date "2024.07.09"]
[Round "9"]
[White "Nekoo04"]
[Black "KNVB"]
[Result "1-0"]
[WhiteElo "2438"]
[BlackElo "2659"]
[TimeControl "180+1"]
[EndTime "15:42:13 PDT"]
[Termination "Nekoo04 won on time"]

1. Nf3 {[%clk 0:03:00.9]} 1... b6 {[%clk 0:03:00.4]} 2. c4 {[%clk 0:03:00.6]}
2... Bb7 {[%clk 0:03:01.3]} 3. e3 {[%clk 0:03:00.8]} 3... c5 {[%clk 0:03:01.6]}
4. b3 {[%clk 0:03:01.2]} 4... e6 {[%clk 0:03:02.1]} 5. Bb2 {[%clk 0:03:01.7]}
5... Nf6 {[%clk 0:03:02.9]} 6. Nc3 {[%clk 0:03:02.3]} 6... Be7 {[%clk
0:03:03.5]} 7. g3 {[%clk 0:03:02.9]} 7... d6 {[%clk 0:03:03.6]} 8. Bg2 {[%clk
0:03:03.5]} 8... O-O {[%clk 0:03:04.4]} 9. O-O {[%clk 0:03:04.2]} 9... a6 {[%clk
0:03:05.2]} 10. Qe2 {[%clk 0:03:04.3]} 10... Qc7 {[%clk 0:03:05.6]} 11. d3
{[%clk 0:03:04.7]} 11... Re8 {[%clk 0:03:01.8]} 12. Rad1 {[%clk 0:03:04.9]}
12... Nbd7 {[%clk 0:02:57.2]} 13. Ne1 {[%clk 0:03:05.4]} 13... d5 {[%clk
0:01:55.4]} 14. f4 {[%clk 0:02:57]} 14... Bd6 {[%clk 0:01:47.1]} 15. e4 {[%clk
0:02:54.8]} 15... d4 {[%clk 0:01:43.5]} 16. e5 {[%clk 0:02:47.7]} 16... Bxg2
{[%clk 0:01:10.8]} 17. Nxg2 {[%clk 0:02:48.5]} 17... dxc3 {[%clk 0:00:37.9]} 18.
Bxc3 {[%clk 0:02:44.4]} 18... Be7 {[%clk 0:00:31.5]} 19. exf6 {[%clk 0:02:44.6]}
19... Bxf6 {[%clk 0:00:32.2]} 20. Qb2 {[%clk 0:02:43.2]} 20... b5 {[%clk
0:00:25.1]} 21. Ne3 {[%clk 0:02:32.7]} 21... Bxc3 {[%clk 0:00:18]} 22. Qxc3
{[%clk 0:02:33.6]} 22... Nf6 {[%clk 0:00:18.7]} 23. f5 {[%clk 0:02:25.3]} 23...
e5 {[%clk 0:00:17.2]} 24. g4 {[%clk 0:02:19.8]} 24... h6 {[%clk 0:00:13.8]} 25.
h4 {[%clk 0:02:20.1]} 25... Qd6 {[%clk 0:00:10.6]} 26. Kg2 {[%clk 0:02:14.1]}
26... Qd4 {[%clk 0:00:09.6]} 27. Qd2 {[%clk 0:02:06]} 27... Nxg4 {[%clk
0:00:09.7]} 28. Rf3 {[%clk 0:02:03.8]} 28... e4 {[%clk 0:00:04.1]} 29. Rg3
{[%clk 0:02:01.3]} 29... Nxe3+ {[%clk 0:00:02.6]} 30. Qxe3 {[%clk 0:02:01.7]}
30... Qxe3 {[%clk 0:00:01.6]} 31. Rxe3 {[%clk 0:02:02.6]} 31... exd3 {[%clk
0:00:02.3]} 32. Rdxd3 {[%clk 0:01:54.5]} 32... Kf8 {[%clk 0:00:02.1]} 33. Rxe8+
{[%clk 0:01:53]} 33... Rxe8 {[%clk 0:00:01.2]} 34. Rd2 {[%clk 0:01:51.7]} 1-0

[Event "Late-Titled-Tuesday-Blitz-July-09-2024"]
[Site "Chess.com"]
[Date "2024.07.09"]
[Round "9"]
[White "ReinisUz"]
[Black "rionelG"]
[Result "1-0"]
[WhiteElo "2557"]
[BlackElo "2411"]
[TimeControl "180+1"]
[EndTime "15:42:15 PDT"]
[Termination "ReinisUz won on time"]

1. c4 {[%clk 0:03:00.9]} 1... c5 {[%clk 0:02:59.5]} 2. Nc3 {[%clk 0:03:00]} 2...
g6 {[%clk 0:02:56.6]} 3. g3 {[%clk 0:02:59.7]} 3... Bg7 {[%clk 0:02:56.2]} 4.
Bg2 {[%clk 0:03:00.1]} 4... Nc6 {[%clk 0:02:56.5]} 5. e4 {[%clk 0:03:00.6]} 5...
d6 {[%clk 0:02:51.9]} 6. Nge2 {[%clk 0:03:00.6]} 6... Nd4 {[%clk 0:02:49.4]} 7.
O-O {[%clk 0:02:59.9]} 7... e6 {[%clk 0:02:48.5]} 8. d3 {[%clk 0:02:59.9]} 8...
Ne7 {[%clk 0:02:48.5]} 9. Rb1 {[%clk 0:02:59.8]} 9... Nec6 {[%clk 0:02:47.4]}
10. a3 {[%clk 0:02:59.9]} 10... O-O {[%clk 0:02:28]} 11. b4 {[%clk 0:02:59.6]}
11... Nxe2+ {[%clk 0:02:11.5]} 12. Nxe2 {[%clk 0:02:57.9]} 12... Nd4 {[%clk
0:02:11.1]} 13. Nxd4 {[%clk 0:02:55.9]} 13... Bxd4 {[%clk 0:01:48.1]} 14. Bb2
{[%clk 0:02:54.3]} 14... Qf6 {[%clk 0:01:47]} 15. Bxd4 {[%clk 0:02:52.6]} 15...
Qxd4 {[%clk 0:01:47.9]} 16. Qc2 {[%clk 0:02:40]} 16... Rb8 {[%clk 0:01:46.5]}
17. Rfc1 {[%clk 0:02:35.6]} 17... b6 {[%clk 0:01:44.8]} 18. Qc3 {[%clk
0:02:35.1]} 18... Qxc3 {[%clk 0:01:42.5]} 19. Rxc3 {[%clk 0:02:36]} 19... Bd7
{[%clk 0:01:21.9]} 20. f4 {[%clk 0:02:34.3]} 20... Rfd8 {[%clk 0:00:50.4]} 21.
b5 {[%clk 0:02:32.1]} 21... Kf8 {[%clk 0:00:23.1]} 22. a4 {[%clk 0:02:31.9]}
22... e5 {[%clk 0:00:17.7]} 23. Ra1 {[%clk 0:02:29.9]} 23... Rb7 {[%clk
0:00:14.4]} 24. a5 {[%clk 0:02:29]} 24... Rdb8 {[%clk 0:00:13.4]} 25. axb6
{[%clk 0:02:27.5]} 25... axb6 {[%clk 0:00:14.3]} 26. Ra6 {[%clk 0:02:23.4]}
26... Ke7 {[%clk 0:00:13.7]} 27. Rca3 {[%clk 0:02:23.3]} 27... f6 {[%clk
0:00:13.2]} 28. Ra7 {[%clk 0:02:23.2]} 28... Kd8 {[%clk 0:00:12.9]} 29. Rxb7
{[%clk 0:02:23]} 29... Rxb7 {[%clk 0:00:13.5]} 30. Ra8+ {[%clk 0:02:23]} 30...
Ke7 {[%clk 0:00:11.8]} 31. Rh8 {[%clk 0:02:22.1]} 31... h5 {[%clk 0:00:11.1]}
32. Rh7+ {[%clk 0:02:15.9]} 32... Kf8 {[%clk 0:00:10.3]} 33. Bh3 {[%clk
0:02:09.3]} 33... Ke8 {[%clk 0:00:04.4]} 34. Be6 {[%clk 0:02:02]} 34... Ra7
{[%clk 0:00:03.6]} 35. Bf7+ {[%clk 0:01:57]} 35... Kf8 {[%clk 0:00:02.9]} 36.
Bxg6 {[%clk 0:01:56.9]} 36... Ra1+ {[%clk 0:00:02.2]} 37. Kf2 {[%clk 0:01:56.8]}
37... Ra2+ {[%clk 0:00:02.3]} 38. Ke3 {[%clk 0:01:57.1]} 1-0

[Event "Late-Titled-Tuesday-Blitz-July-09-2024"]
[Site "Chess.com"]
[Date "2024.07.09"]
[Round "9"]
[White "Boorchess"]
[Black "Queensandpawns"]
[Result "0-1"]
[WhiteElo "2501"]
[BlackElo "2336"]
[TimeControl "180+1"]
[EndTime "15:42:16 PDT"]
[Termination "Queensandpawns won by resignation"]

1. d4 {[%clk 0:03:00.9]} 1... Nc6 {[%clk 0:03:00.9]} 2. Nf3 {[%clk 0:03:00.6]}
2... d6 {[%clk 0:03:00.4]} 3. Bf4 {[%clk 0:02:59.9]} 3... Nf6 {[%clk 0:03:00.8]}
4. e3 {[%clk 0:02:59.9]} 4... g6 {[%clk 0:03:01.4]} 5. h3 {[%clk 0:02:59.5]}
5... Bg7 {[%clk 0:03:02]} 6. Bb5 {[%clk 0:02:58.7]} 6... O-O {[%clk 0:03:02.2]}
7. O-O {[%clk 0:02:58.2]} 7... a6 {[%clk 0:03:00.6]} 8. Be2 {[%clk 0:02:55.6]}
8... Re8 {[%clk 0:02:58]} 9. c3 {[%clk 0:02:49.6]} 9... b5 {[%clk 0:02:55.3]}
10. Nbd2 {[%clk 0:02:47.6]} 10... Bb7 {[%clk 0:02:55.3]} 11. a4 {[%clk
0:02:45.7]} 11... b4 {[%clk 0:02:52.7]} 12. a5 {[%clk 0:02:41.3]} 12... e5
{[%clk 0:02:51.7]} 13. Bh2 {[%clk 0:02:40.4]} 13... e4 {[%clk 0:02:50.9]} 14.
Ne1 {[%clk 0:02:39.9]} 14... Rb8 {[%clk 0:02:41.1]} 15. Qa4 {[%clk 0:02:36.8]}
15... bxc3 {[%clk 0:02:32]} 16. bxc3 {[%clk 0:02:36.5]} 16... Nd5 {[%clk
0:02:32.9]} 17. Rc1 {[%clk 0:02:28.2]} 17... Qd7 {[%clk 0:02:23.4]} 18. Bc4
{[%clk 0:02:18.4]} 18... Nf6 {[%clk 0:02:14.1]} 19. Nc2 {[%clk 0:02:06.5]} 19...
Red8 {[%clk 0:02:13.9]} 20. Rb1 {[%clk 0:02:00.4]} 20... d5 {[%clk 0:02:14]} 21.
Be2 {[%clk 0:01:59.5]} 21... Ne8 {[%clk 0:02:07.1]} 22. c4 {[%clk 0:01:56.6]}
22... Nxd4 {[%clk 0:02:01.7]} 23. Qxd7 {[%clk 0:01:41.6]} 23... Nxe2+ {[%clk
0:02:01.5]} 24. Kh1 {[%clk 0:01:41]} 24... Rxd7 {[%clk 0:02:02.4]} 25. cxd5
{[%clk 0:01:32.7]} 25... Nc3 {[%clk 0:01:59.8]} 26. Rb3 {[%clk 0:01:32.1]} 26...
Rxd5 {[%clk 0:01:55.1]} 27. Nc4 {[%clk 0:01:31.3]} 27... Rb5 {[%clk 0:01:52.8]}
28. Rxb5 {[%clk 0:01:23.7]} 28... axb5 {[%clk 0:01:53.7]} 29. Ne5 {[%clk
0:01:23.8]} 29... Ra8 {[%clk 0:01:46.2]} 30. Ra1 {[%clk 0:01:23.3]} 30... Nd6
{[%clk 0:01:43]} 31. Nd7 {[%clk 0:01:13.1]} 31... Na4 {[%clk 0:01:39.9]} 32. Rb1
{[%clk 0:01:13.2]} 32... Rxa5 {[%clk 0:01:38.8]} 33. Nb4 {[%clk 0:01:09.2]}
33... Nc3 {[%clk 0:01:36.7]} 34. Rc1 {[%clk 0:01:08]} 34... Ra4 {[%clk
0:01:29.2]} 35. Nc2 {[%clk 0:01:08]} 35... Ra2 {[%clk 0:01:27]} 36. Nd4 {[%clk
0:01:00.6]} 36... b4 {[%clk 0:01:24.3]} 37. Nc5 {[%clk 0:00:57.7]} 37... Bd5
{[%clk 0:01:23.6]} 38. Bg3 {[%clk 0:00:52.3]} 38... Bxd4 {[%clk 0:01:19.6]} 39.
exd4 {[%clk 0:00:51.8]} 39... Ne2 {[%clk 0:01:20.2]} 40. Rb1 {[%clk 0:00:51.2]}
40... Nxg3+ {[%clk 0:01:19.3]} 41. fxg3 {[%clk 0:00:51.4]} 41... e3 {[%clk
0:01:19.4]} 42. Re1 {[%clk 0:00:50.1]} 42... Rxg2 {[%clk 0:01:17.4]} 0-1

[Event "Late-Titled-Tuesday-Blitz-July-09-2024"]
[Site "Chess.com"]
[Date "2024.07.09"]
[Round "9"]
[White "enriquebutti"]
[Black "KorolDimitriy75"]
[Result "1-0"]
[WhiteElo "2198"]
[BlackElo "2387"]
[TimeControl "180+1"]
[EndTime "15:42:29 PDT"]
[Termination "enriquebutti won on time"]

1. d4 {[%clk 0:03:00.8]} 1... Nf6 {[%clk 0:02:59.6]} 2. Nf3 {[%clk 0:02:59.9]}
2... g6 {[%clk 0:02:59.3]} 3. c4 {[%clk 0:02:59.1]} 3... c5 {[%clk 0:02:59.2]}
4. Nc3 {[%clk 0:02:58.2]} 4... cxd4 {[%clk 0:02:59]} 5. Nxd4 {[%clk 0:02:57.7]}
5... Nc6 {[%clk 0:02:59.9]} 6. g3 {[%clk 0:02:57]} 6... Bg7 {[%clk 0:03:00]} 7.
Bg2 {[%clk 0:02:56.6]} 7... O-O {[%clk 0:03:00.1]} 8. c5 {[%clk 0:02:56.2]} 8...
Ng4 {[%clk 0:01:22.9]} 9. Nb3 {[%clk 0:02:51]} 9... a5 {[%clk 0:00:39.3]} 10.
Na4 {[%clk 0:02:42.8]} 10... d6 {[%clk 0:00:33]} 11. cxd6 {[%clk 0:02:37.3]}
11... exd6 {[%clk 0:00:33.9]} 12. h3 {[%clk 0:02:31.3]} 12... Nge5 {[%clk
0:00:30.8]} 13. O-O {[%clk 0:02:28.6]} 13... Be6 {[%clk 0:00:29.6]} 14. Nc3
{[%clk 0:02:27.5]} 14... a4 {[%clk 0:00:26.2]} 15. Nd2 {[%clk 0:02:26.6]} 15...
a3 {[%clk 0:00:21]} 16. Nde4 {[%clk 0:02:20.8]} 16... axb2 {[%clk 0:00:18.2]}
17. Bxb2 {[%clk 0:02:20.2]} 17... Nc4 {[%clk 0:00:18.8]} 18. Qc2 {[%clk
0:02:15.5]} 18... Nd4 {[%clk 0:00:12.9]} 19. Qc1 {[%clk 0:02:01.2]} 19... Qb6
{[%clk 0:00:06.3]} 20. Rb1 {[%clk 0:02:00.2]} 20... Nxb2 {[%clk 0:00:04.8]} 21.
Rxb2 {[%clk 0:01:59.2]} 21... Qa6 {[%clk 0:00:05.1]} 22. Qb1 {[%clk 0:01:52.9]}
22... Rac8 {[%clk 0:00:03.9]} 23. e3 {[%clk 0:01:44.4]} 23... Nf5 {[%clk
0:00:01]} 24. Rb6 {[%clk 0:01:35.3]} 24... d5 {[%clk 0:00:01.9]} 25. Rxa6 {[%clk
0:01:34.6]} 25... dxe4 {[%clk 0:00:02.2]} 26. Nxe4 {[%clk 0:01:34.2]} 26... Bc4
{[%clk 0:00:02.3]} 27. Qxb7 {[%clk 0:01:31.5]} 27... Rb8 {[%clk 0:00:01.7]} 28.
Qa7 {[%clk 0:01:27.9]} 1-0

[Event "Late-Titled-Tuesday-Blitz-July-09-2024"]
[Site "Chess.com"]
[Date "2024.07.09"]
[Round "9"]
[White "NovakRatko"]
[Black "marvinguevara"]
[Result "1-0"]
[WhiteElo "2350"]
[BlackElo "2090"]
[TimeControl "180+1"]
[EndTime "15:42:37 PDT"]
[Termination "NovakRatko won on time"]

1. d4 {[%clk 0:02:56.1]} 1... Nf6 {[%clk 0:02:56.5]} 2. c4 {[%clk 0:02:56.3]}
2... d6 {[%clk 0:02:56.9]} 3. f4 {[%clk 0:02:55.5]} 3... c6 {[%clk 0:02:51.9]}
4. Nc3 {[%clk 0:02:55.4]} 4... Qc7 {[%clk 0:02:49.5]} 5. e4 {[%clk 0:02:55.1]}
5... Bg4 {[%clk 0:02:44.6]} 6. Qb3 {[%clk 0:02:47.7]} 6... g6 {[%clk 0:02:32.1]}
7. e5 {[%clk 0:02:46.2]} 7... dxe5 {[%clk 0:02:13.4]} 8. fxe5 {[%clk 0:02:45]}
8... Nfd7 {[%clk 0:02:12.9]} 9. h3 {[%clk 0:02:43.7]} 9... Bf5 {[%clk
0:01:59.9]} 10. Nf3 {[%clk 0:02:38.5]} 10... h5 {[%clk 0:01:54.4]} 11. Bf4
{[%clk 0:02:36.5]} 11... c5 {[%clk 0:01:50.5]} 12. Nd5 {[%clk 0:02:27.7]} 12...
Qa5+ {[%clk 0:01:40.1]} 13. Bd2 {[%clk 0:02:18.8]} 13... Qd8 {[%clk 0:01:15.6]}
14. Qxb7 {[%clk 0:02:17.5]} 14... Bg7 {[%clk 0:01:09.3]} 15. Nc7+ {[%clk
0:02:13.2]} 15... Kf8 {[%clk 0:01:09.4]} 16. Nxa8 {[%clk 0:02:13]} 16... Kg8
{[%clk 0:01:09.4]} 17. Bf4 {[%clk 0:01:58.8]} 17... e6 {[%clk 0:00:52.7]} 18.
Rd1 {[%clk 0:01:49.9]} 18... Bf8 {[%clk 0:00:30.2]} 19. d5 {[%clk 0:01:47.7]}
19... Qa5+ {[%clk 0:00:22.2]} 20. Bd2 {[%clk 0:01:44.9]} 20... Qxa2 {[%clk
0:00:22.1]} 21. Bc3 {[%clk 0:01:36.4]} 21... Kg7 {[%clk 0:00:16.3]} 22. Be2
{[%clk 0:01:34.5]} 22... Be7 {[%clk 0:00:13.2]} 23. O-O {[%clk 0:01:25.3]} 23...
Qa4 {[%clk 0:00:05.9]} 24. Nc7 {[%clk 0:01:24.4]} 24... Qc2 {[%clk 0:00:03.6]}
25. Rfe1 {[%clk 0:01:11.9]} 1-0

[Event "Late-Titled-Tuesday-Blitz-July-09-2024"]
[Site "Chess.com"]
[Date "2024.07.09"]
[Round "9"]
[White "mishanick"]
[Black "Boundless_Strike"]
[Result "1-0"]
[WhiteElo "3084"]
[BlackElo "2809"]
[TimeControl "180+1"]
[EndTime "15:42:50 PDT"]
[Termination "mishanick won on time"]

1. d4 {[%clk 0:03:00.9]} 1... e5 {[%clk 0:02:59.3]} 2. dxe5 {[%clk 0:03:00.4]}
2... d6 {[%clk 0:02:59.8]} 3. Nf3 {[%clk 0:02:58.7]} 3... Nc6 {[%clk 0:02:59.7]}
4. exd6 {[%clk 0:02:57.8]} 4... Bxd6 {[%clk 0:02:59.5]} 5. Nc3 {[%clk
0:02:57.6]} 5... Bg4 {[%clk 0:02:58.8]} 6. Nb5 {[%clk 0:02:56.3]} 6... Bb4+
{[%clk 0:02:58.5]} 7. c3 {[%clk 0:02:56.3]} 7... Qxd1+ {[%clk 0:02:57.8]} 8.
Kxd1 {[%clk 0:02:56.8]} 8... O-O-O+ {[%clk 0:02:58.1]} 9. Ke1 {[%clk 0:02:55.5]}
9... Ba5 {[%clk 0:02:52.2]} 10. Be3 {[%clk 0:02:49.9]} 10... Nf6 {[%clk
0:02:51.3]} 11. h3 {[%clk 0:02:45.4]} 11... Bh5 {[%clk 0:02:43.8]} 12. g4 {[%clk
0:02:43.4]} 12... Bg6 {[%clk 0:02:43.8]} 13. Bg2 {[%clk 0:02:43.8]} 13... Rhe8
{[%clk 0:02:41.6]} 14. Rd1 {[%clk 0:02:26.7]} 14... Nd5 {[%clk 0:02:39.9]} 15.
Bc1 {[%clk 0:02:14.6]} 15... a6 {[%clk 0:02:36.5]} 16. Na3 {[%clk 0:02:11.7]}
16... Be4 {[%clk 0:02:18.9]} 17. Nc4 {[%clk 0:01:41.4]} 17... Ncb4 {[%clk
0:01:29.8]} 18. Bd2 {[%clk 0:01:12.5]} 18... Bd3 {[%clk 0:01:08.1]} 19. Nfe5
{[%clk 0:01:12.3]} 19... b5 {[%clk 0:00:15.5]} 20. cxb4 {[%clk 0:00:52.7]} 20...
bxc4 {[%clk 0:00:13.5]} 21. Nxd3 {[%clk 0:00:53.2]} 21... cxd3 {[%clk
0:00:10.6]} 22. bxa5 {[%clk 0:00:53.4]} 22... dxe2 {[%clk 0:00:01.5]} 23. Rc1
{[%clk 0:00:53.8]} 1-0

[Event "Late-Titled-Tuesday-Blitz-July-09-2024"]
[Site "Chess.com"]
[Date "2024.07.09"]
[Round "9"]
[White "Mariia89"]
[Black "tandercat"]
[Result "1-0"]
[WhiteElo "2222"]
[BlackElo "1919"]
[TimeControl "180+1"]
[EndTime "15:43:00 PDT"]
[Termination "Mariia89 won on time"]

1. d4 {[%clk 0:02:57.7]} 1... e6 {[%clk 0:02:59.2]} 2. Nf3 {[%clk 0:02:56.9]}
2... f5 {[%clk 0:02:58.6]} 3. g3 {[%clk 0:02:56.8]} 3... Nf6 {[%clk 0:02:54.5]}
4. Bg2 {[%clk 0:02:56.7]} 4... d5 {[%clk 0:02:54.7]} 5. O-O {[%clk 0:02:54.5]}
5... Bd6 {[%clk 0:02:55.1]} 6. c4 {[%clk 0:02:53.2]} 6... c6 {[%clk 0:02:54.7]}
7. b3 {[%clk 0:02:53.3]} 7... Qe7 {[%clk 0:02:52.7]} 8. a4 {[%clk 0:02:53]} 8...
a5 {[%clk 0:02:51.2]} 9. Ba3 {[%clk 0:02:53.2]} 9... Bb4 {[%clk 0:02:35.9]} 10.
Bxb4 {[%clk 0:02:50.3]} 10... axb4 {[%clk 0:02:31.1]} 11. c5 {[%clk 0:02:48.4]}
11... Ne4 {[%clk 0:02:16.6]} 12. Qe1 {[%clk 0:02:35.8]} 12... Na6 {[%clk
0:02:15.3]} 13. Ne5 {[%clk 0:02:30.9]} 13... O-O {[%clk 0:02:13.1]} 14. Nd3
{[%clk 0:02:29.9]} 14... b6 {[%clk 0:02:09.1]} 15. cxb6 {[%clk 0:02:27.3]} 15...
Rb8 {[%clk 0:02:08.9]} 16. a5 {[%clk 0:02:27.1]} 16... c5 {[%clk 0:02:07.6]} 17.
dxc5 {[%clk 0:02:25]} 17... Nexc5 {[%clk 0:02:07.5]} 18. Nxc5 {[%clk 0:02:14.5]}
18... Nxc5 {[%clk 0:02:07.5]} 19. Nd2 {[%clk 0:02:14.7]} 19... Ba6 {[%clk
0:02:06.2]} 20. Qd1 {[%clk 0:02:10.5]} 20... Rfc8 {[%clk 0:02:01]} 21. Nf3
{[%clk 0:02:08.7]} 21... Qf6 {[%clk 0:01:52.4]} 22. Re1 {[%clk 0:02:04.9]} 22...
Qc3 {[%clk 0:01:49.7]} 23. Nd4 {[%clk 0:02:03.3]} 23... Kh8 {[%clk 0:01:24.9]}
24. Ra2 {[%clk 0:01:10]} 24... e5 {[%clk 0:00:57.4]} 25. Nxf5 {[%clk 0:01:09.7]}
25... d4 {[%clk 0:00:33.2]} 26. Nd6 {[%clk 0:00:56]} 26... Rf8 {[%clk
0:00:26.4]} 27. Bd5 {[%clk 0:00:55.8]} 1-0